bitfinex-derivatives/quotes_BTCF0:USTF0_20260106
["timestamp","ask_amount","ask_price","bid_price","bid_amount"]
[1767737708975,0.18357459,93230.0,93209.0,0.0636638]
[1767737709368,0.09229459,93229.0,93209.0,0.0636638]
[1767737709569,0.010732,93218.0,93209.0,0.0636638]
[1767737709771,0.010732,93218.0,93205.0,0.09579594]
[1767737710070,0.010732,93218.0,93205.0,0.159117]
[1767737710267,0.07282914,93222.0,93196.0,0.06332106]
[1767737710472,0.010732,93214.0,93198.0,0.06332106]
[1767737710674,0.010732,93214.0,93199.0,0.06332106]
[1767737710976,0.010732,93214.0,93200.0,0.06077085]
[1767737711370,0.09229459,93223.0,93201.0,0.06077085]
[1767737711371,0.010732,93217.0,93201.0,0.06077085]
[1767737712081,0.010732,93216.0,93201.0,0.06077085]
[1767737713970,3.8e-07,93230.0,93205.0,0.0592765]
[1767737714173,3.8e-07,93230.0,93197.0,0.09128]
[1767737714174,0.010728,93248.0,93230.0,0.01073]
[1767737714374,0.0180107,93248.0,93232.0,0.15507244]
[1767737714680,0.010724,93289.0,93225.0,0.09128]
[1767737714681,0.102007,93261.0,93241.0,0.0592765]
[1767737714882,0.01794357,93260.0,93241.0,0.0592765]
[1767737715083,0.18357459,93261.0,93236.0,0.15398878]
[1767737715279,0.18357459,93261.0,93210.0,0.010733]
[1767737715280,0.09229459,93278.0,93257.0,0.06270878]
[1767737715481,0.010725,93281.0,93258.0,0.06270878]
[1767737715676,0.09128,93293.0,93270.0,0.06270878]
[1767737715881,0.09128,93292.0,93271.0,0.15940897]
[1767737716382,0.010723,93291.0,93271.0,0.17013497]
[1767737716970,0.010723,93291.0,93271.0,0.15940897]
[1767737717481,0.09128,93292.0,93271.0,0.15940897]
[1767737717678,0.010724,93289.0,93265.0,0.07903699]
[1767737718986,0.010724,93287.0,93265.0,0.07903699]
[1767737719877,0.010724,93287.0,93266.0,0.06831099]
[1767737720784,0.18357459,93291.0,93268.0,0.010726]
[1767737720986,0.010724,93288.0,93268.0,0.010726]
[1767737722488,0.010724,93290.0,93271.0,0.010726]
[1767737722682,0.010724,93290.0,93271.0,0.07903699]
[1767737722984,0.09124,93289.0,93271.0,0.07903699]
[1767737724386,0.09124,93289.0,93271.0,0.06831099]
[1767737724788,0.010724,93290.0,93272.0,0.010726]
[1767737725088,0.09124,93289.0,93272.0,0.010726]
[1767737725984,0.07282914,93299.0,93264.0,0.09128]
[1767737725985,0.07282914,93333.0,93276.0,0.03923465]
[1767737726189,0.09229459,93321.0,93294.0,0.03923465]
[1767737726493,0.09229459,93321.0,93292.0,0.03923465]
[1767737726494,0.09229459,93317.0,93292.0,0.03923465]
[1767737726685,0.09124,93320.0,93298.0,0.04995765]
[1767737726885,0.09124,93320.0,93298.0,0.03923465]
[1767737727084,0.18353459,93320.0,93298.0,0.03923465]
[1767737727785,0.09229459,93319.0,93298.0,0.03923465]
[1767737728190,0.09229459,93319.0,93292.0,0.03934108]
[1767737729186,0.010721,93314.0,93292.0,0.03934108]
[1767737729486,0.010721,93314.0,93293.0,0.03732436]
[1767737729992,0.10196,93320.0,93300.0,0.03677967]
[1767737730195,0.10196,93320.0,93301.0,0.04750167]
[1767737730386,0.010721,93316.0,93299.0,0.00214366]
[1767737730591,0.01072,93319.0,93299.0,0.01286566]
[1767737730987,0.010721,93317.0,93299.0,0.01286566]
[1767737731588,0.09818511,93319.0,93299.0,0.00214366]
[1767737731788,0.16344384,93319.0,93299.0,0.00214366]
[1767737732084,0.06525873,93317.0,93299.0,0.00214366]
[1767737732288,0.010723,93300.0,93284.0,0.010724]
[1767737732488,0.09818511,93302.0,93286.0,0.010724]
[1767737732799,0.010722,93306.0,93286.0,0.04355553]
[1767737733696,0.18938511,93309.0,93286.0,0.04355553]
[1767737733697,0.010722,93304.0,93286.0,0.04355553]
[1767737735199,0.010722,93302.0,93286.0,0.010724]
[1767737735595,0.010723,93296.0,93283.0,0.0912]
[1767737736290,0.010723,93299.0,93283.0,0.0912]
[1767737736490,0.010723,93297.0,93283.0,0.0912]
[1767737737091,0.010723,93297.0,93284.0,0.03312271]
[1767737738904,0.09818511,93304.0,93284.0,0.03312271]
[1767737739202,0.09818511,93304.0,93283.0,0.0912]
[1767737739901,0.010723,93296.0,93283.0,0.0912]
[1767737740104,0.010723,93293.0,93283.0,0.0912]
[1767737740602,0.010723,93296.0,93283.0,0.0912]
[1767737741797,0.010723,93293.0,93283.0,0.0912]
[1767737742794,0.010724,93286.0,93275.0,0.0912]
[1767737743398,0.09818511,93292.0,93275.0,0.0912]
[1767737743599,0.010724,93290.0,93276.0,0.010725]
[1767737743802,0.010724,93288.0,93275.0,0.0912]
[1767737745897,0.16344384,93285.0,93270.0,0.0912]
[1767737746095,0.010725,93280.0,93267.0,0.0912]
[1767737746900,0.09818511,93281.0,93259.0,0.03355001]
[1767737747100,0.09818511,93281.0,93260.0,0.010727]
[1767737747601,0.010725,93275.0,93260.0,0.010727]
[1767737748502,0.010726,93273.0,93260.0,0.010727]
[1767737750400,0.09818511,93281.0,93256.0,0.010727]
[1767737750401,0.010726,93271.0,93256.0,0.010727]
[1767737750701,0.010726,93271.0,93258.0,0.010727]
[1767737750904,0.010726,93271.0,93257.0,0.010727]
[1767737752000,0.09818511,93276.0,93255.0,0.12871556]
[1767737752205,0.010726,93266.0,93255.0,0.12871556]
[1767737752699,0.010726,93266.0,93255.0,0.0912]
[1767737753007,0.09818511,93276.0,93255.0,0.0912]
[1767737753008,0.010726,93268.0,93255.0,0.1394404]
[1767737753705,0.09818511,93276.0,93256.0,0.0375124]
[1767737754099,0.010726,93266.0,93256.0,0.0375124]
[1767737754906,0.010727,93265.0,93256.0,0.0375124]
[1767737755106,0.010726,93272.0,93256.0,0.0375124]
[1767737755506,0.010726,93266.0,93256.0,0.0375124]
[1767737756109,0.010726,93267.0,93255.0,0.0912]
[1767737756508,0.010726,93270.0,93255.0,0.12736993]
[1767737756708,0.010726,93268.0,93255.0,0.12736993]
[1767737757410,0.010726,93266.0,93255.0,0.12736993]
[1767737757795,0.06525873,93275.0,93255.0,0.0912]
[1767737758002,0.010727,93263.0,93255.0,0.0912]
[1767737758403,0.010727,93263.0,93249.0,0.010728]
[1767737758604,0.09921932,93271.0,93249.0,0.0344329]
[1767737758810,0.10994532,93270.0,93249.0,0.0344329]
[1767737759011,0.09921932,93270.0,93249.0,0.0344329]
[1767737759214,0.010727,93262.0,93249.0,0.0451609]
[1767737759828,0.010727,93261.0,93249.0,0.0344329]
[1767737762435,0.15566324,93267.0,93249.0,0.010728]
[1767737762632,0.010727,93262.0,93249.0,0.010728]
[1767737762824,0.010727,93262.0,93248.0,0.0912]
[1767737763834,0.0912,93276.0,93255.0,0.03128316]
[1767737764030,0.06205586,93273.0,93255.0,0.010728]
[1767737764232,0.010725,93275.0,93261.0,0.04201016]
[1767737764532,0.0912,93277.0,93262.0,0.03128316]
[1767737765036,0.0912,93277.0,93258.0,0.04170446]
[1767737766134,0.010726,93274.0,93258.0,0.04170446]
[1767737766929,0.15566324,93277.0,93254.0,0.03060914]
[1767737767130,0.010726,93268.0,93252.0,0.010728]
[1767737767336,0.010726,93268.0,93254.0,0.010728]
[1767737767934,0.09360738,93270.0,93252.0,0.03060914]
[1767737768245,0.010727,93261.0,93249.0,0.010728]
[1767737768538,0.10051189,93260.0,93249.0,0.010728]
[1767737769037,0.010727,93264.0,93251.0,0.010728]
[1767737770332,0.010726,93266.0,93250.0,0.12348542]
[1767737770533,0.010726,93266.0,93255.0,0.02978805]
[1767737770727,0.010727,93265.0,93255.0,0.02978805]
[1767737770927,0.010727,93264.0,93255.0,0.02978805]
[1767737771140,0.010727,93264.0,93251.0,0.02940612]
[1767737771936,0.010727,93261.0,93251.0,0.02940612]
[1767737772735,0.10051189,93270.0,93251.0,0.02940612]
[1767737773625,0.10051189,93270.0,93253.0,0.02827819]
[1767737773844,0.010727,93263.0,93253.0,0.02827819]
[1767737774432,0.010727,93262.0,93253.0,0.02827819]
[1767737774940,0.10051189,93270.0,93253.0,0.02827819]
[1767737775342,0.15566324,93286.0,93262.0,0.02728818]
[1767737775537,0.10051189,93280.0,93262.0,0.02728818]
[1767737775735,0.010726,93273.0,93262.0,0.02728818]
[1767737775933,0.10051189,93280.0,93262.0,0.02728818]
[1767737776249,0.010726,93272.0,93262.0,0.02728818]
[1767737776436,0.10051189,93280.0,93262.0,0.02728818]
[1767737776945,0.010726,93271.0,93258.0,0.11915245]
[1767737777245,0.010726,93273.0,93259.0,0.02795245]
[1767737778347,0.010726,93272.0,93259.0,0.02795245]
[1767737780437,0.010726,93272.0,93260.0,0.01586199]
[1767737780631,0.010726,93272.0,93258.0,0.0912]
[1767737780632,0.010725,93275.0,93261.0,0.02658899]
[1767737781040,0.09360738,93275.0,93258.0,0.0912]
[1767737781243,0.09360738,93275.0,93237.0,0.09369737]
[1767737781244,0.10433438,93257.0,93237.0,0.09369737]
[1767737781444,0.10433438,93257.0,93235.0,0.01533907]
[1767737781445,0.10051189,93250.0,93240.0,0.0912]
[1767737782141,0.11123989,93250.0,93240.0,0.0912]
[1767737782643,0.010728,93250.0,93240.0,0.0912]
[1767737783338,0.11123989,93250.0,93240.0,0.0912]
[1767737784138,0.12943464,93250.0,93240.0,0.0912]
[1767737785144,0.02892275,93250.0,93240.0,0.0912]
[1767737786151,0.01819475,93250.0,93240.0,0.0912]
[1767737786349,0.10051189,93250.0,93240.0,0.0912]
[1767737787650,0.010728,93251.0,93240.0,0.0912]
[1767737787842,0.10051189,93250.0,93240.0,0.0912]
[1767737788143,0.01823488,93250.0,93240.0,0.101929]
[1767737788448,0.10051189,93260.0,93241.0,0.0263909]
[1767737788651,0.19411927,93260.0,93241.0,0.0263909]
[1767737788848,0.010728,93251.0,93241.0,0.0263909]
[1767737789451,0.010728,93249.0,93241.0,0.0263909]
[1767737789950,0.010728,93249.0,93240.0,0.0912]
[1767737790546,0.10051189,93250.0,93240.0,0.0912]
[1767737791154,0.010728,93249.0,93240.0,0.0912]
[1767737791447,0.010729,93247.0,93239.0,4e-08]
[1767737791639,0.09360738,93249.0,93239.0,4e-08]
[1767737791843,0.010728,93248.0,93239.0,4e-08]
[1767737792055,0.010729,93245.0,93239.0,4e-08]
[1767737792249,0.010729,93242.0,93234.0,4e-08]
[1767737792441,0.010729,93241.0,93230.0,0.09124]
[1767737792645,0.10051189,93240.0,93230.0,0.09124]
[1767737794153,0.10051189,93240.0,93229.0,0.00013418]
[1767737794154,0.01073,93235.0,93229.0,0.00013418]
[1767737794451,0.19876336,93240.0,93229.0,0.00013418]
[1767737794655,0.09825147,93232.0,93218.0,0.09124]
[1767737794846,0.10051189,93228.0,93218.0,0.09124]
[1767737795247,0.010731,93225.0,93218.0,0.09124]
[1767737795450,0.05964472,93224.0,93195.0,0.13492832]
[1767737795650,0.05964472,93174.0,93166.0,0.17164389]
[1767737795952,0.010734,93203.0,93150.0,9.535e-05]
[1767737795953,0.10051189,93180.0,93163.0,0.06067402]
[1767737796152,0.010736,93185.0,93166.0,0.08979809]
[1767737796353,0.09825147,93191.0,93166.0,0.06067402]
[1767737796558,0.18949147,93192.0,93166.0,0.06067402]
[1767737796859,0.15789619,93189.0,93157.0,0.06067402]
[1767737797162,0.09829658,93188.0,93159.0,0.06067402]
[1767737797454,0.09829658,93188.0,93161.0,0.06067402]
[1767737797654,0.010736,93184.0,93162.0,0.07141202]
[1767737797850,4.511e-05,93183.0,93162.0,0.07141202]
[1767737798250,4.511e-05,93183.0,93162.0,0.16421011]
[1767737798451,4.511e-05,93183.0,93163.0,0.09279809]
[1767737799250,4.511e-05,93183.0,93163.0,0.15347211]
[1767737800158,0.010734,93197.0,93176.0,0.06067402]
[1767737800358,0.010735,93195.0,93178.0,0.06067402]
[1767737800562,0.101975,93195.0,93177.0,0.09279809]
[1767737801555,0.12585406,93190.0,93170.0,0.09279809]
[1767737802458,0.010736,93179.0,93167.0,0.09124]
[1767737802661,0.010736,93185.0,93167.0,0.09124]
[1767737803555,0.010736,93182.0,93167.0,0.09124]
[1767737803760,0.010736,93182.0,93163.0,0.09279809]
[1767737804160,0.007736,93179.0,93160.0,0.09128]
[1767737804461,0.09825147,93181.0,93160.0,0.09128]
[1767737804657,0.09825147,93180.0,93160.0,0.09128]
[1767737804864,0.09128,93184.0,93160.0,0.09128]
[1767737805463,0.09128,93184.0,93160.0,0.25549011]
[1767737805766,0.010736,93183.0,93161.0,0.15347211]
[1767737805962,0.010736,93180.0,93161.0,0.15347211]
[1767737806260,0.15789619,93180.0,93160.0,0.09128]
[1767737806460,0.010738,93169.0,93152.0,0.09128]
[1767737806663,0.15789619,93169.0,93150.0,9.535e-05]
[1767737806869,0.12585406,93160.0,93150.0,9.535e-05]
[1767737807171,0.15789619,93165.0,93150.0,9.535e-05]
[1767737807365,0.010738,93164.0,93150.0,9.535e-05]
[1767737807573,0.01074,93149.0,93128.0,0.010742]
[1767737807759,0.102019,93153.0,93128.0,0.16421411]
[1767737807959,0.102019,93153.0,93130.0,0.010742]
[1767737808266,0.01074,93147.0,93129.0,0.15347211]
[1767737808476,0.01074,93147.0,93125.0,0.09128]
[1767737808477,0.01074,93144.0,93125.0,0.09128]
[1767737808659,9.535e-05,93146.0,93125.0,0.09128]
[1767737808972,9.535e-05,93146.0,93125.0,0.19482109]
[1767737809266,9.535e-05,93146.0,93125.0,0.25549511]
[1767737809466,0.15799154,93146.0,93125.0,0.010743]
[1767737809667,0.09834682,93146.0,93125.0,0.010743]
[1767737810063,9.535e-05,93146.0,93125.0,0.16421511]
[1767737810260,0.09128,93145.0,93128.0,0.15347211]
[1767737810660,0.09128,93145.0,93128.0,0.09279809]
[1767737811169,0.01074,93144.0,93128.0,0.09279809]
[1767737811379,0.09128,93145.0,93129.0,0.010742]
[1767737811672,0.09128,93145.0,93126.0,0.010742]
[1767737812475,0.09128,93145.0,93130.0,0.010742]
[1767737812776,0.01074,93144.0,93126.0,0.16421411]
[1767737812973,0.01074,93144.0,93126.0,0.010742]
[1767737814361,0.010741,93142.0,93126.0,0.010742]
[1767737815366,0.09128,93145.0,93130.0,0.010742]
[1767737815565,0.010741,93143.0,93127.0,0.010742]
[1767737815872,0.010741,93143.0,93124.0,0.16421511]
[1767737816090,0.15789619,93142.0,93124.0,0.010743]
[1767737816387,0.09128,93145.0,93122.0,0.15347211]
[1767737816685,0.24917619,93145.0,93122.0,0.15347211]
[1767737817188,0.010741,93138.0,93122.0,0.15347211]
[1767737817484,0.010741,93136.0,93122.0,0.15347211]
[1767737817787,0.010741,93136.0,93120.0,0.010743]
[1767737817980,0.010741,93135.0,93119.0,0.0021478]
[1767737819084,0.010742,93133.0,93119.0,0.0021478]
[1767737819294,9.535e-05,93132.0,93119.0,0.0021478]
[1767737819781,0.16335014,93128.0,93093.0,0.07273845]
[1767737819980,0.010744,93115.0,93094.0,0.010746]
[1767737820184,0.49208,93135.0,93114.0,0.09193398]
[1767737820392,0.09132,93134.0,93100.0,0.09132]
[1767737820593,0.08458896,93137.0,93115.0,0.010744]
[1767737820797,0.010739,93158.0,93135.0,0.09193398]
[1767737820798,0.102059,93155.0,93135.0,0.09193398]
[1767737820984,0.01074,93150.0,93135.0,0.09193398]
[1767737821185,0.09518236,93158.0,93130.0,0.09193398]
[1767737821393,0.09132,93164.0,93145.0,0.09354229]
[1767737821686,0.010739,93159.0,93138.0,0.010741]
[1767737821889,0.010739,93156.0,93138.0,0.09354229]
[1767737822085,0.09529006,93163.0,93138.0,0.10428329]
[1767737822594,0.01074,93150.0,93131.0,0.010742]
[1767737823194,0.01074,93146.0,93126.0,0.102062]
[1767737823692,0.01074,93144.0,93126.0,0.19560429]
[1767737825286,0.01074,93148.0,93126.0,0.25843134]
[1767737825495,0.01074,93146.0,93127.0,0.010742]
[1767737826089,0.010741,93142.0,93126.0,0.09132]
[1767737826897,0.010741,93138.0,93126.0,0.09132]
[1767737827388,0.102059,93153.0,93119.0,0.09354229]
[1767737827389,0.010742,93133.0,93119.0,0.09354229]
[1767737827596,0.010742,93131.0,93117.0,0.09132]
[1767737828091,0.09529006,93136.0,93117.0,0.09132]
[1767737828300,0.16189192,93135.0,93117.0,0.09132]
[1767737829300,0.010742,93132.0,93117.0,0.09132]
[1767737829599,0.010742,93129.0,93112.0,0.09354229]
[1767737829896,0.010742,93131.0,93114.0,0.17785534]
[1767737830597,0.010742,93134.0,93114.0,0.17785534]
[1767737831097,0.010742,93128.0,93110.0,0.102064]
[1767737831293,0.010742,93131.0,93112.0,0.010744]
[1767737831694,0.010741,93135.0,93116.0,0.010744]
[1767737831895,0.010742,93132.0,93113.0,0.010744]
[1767737832493,0.010741,93136.0,93116.0,0.010744]
[1767737833384,0.010741,93136.0,93110.0,0.09132]
[1767737833385,0.60624186,93162.0,93137.0,0.16711134]
[1767737833591,1.10537669,93185.0,93145.0,0.16711134]
[1767737833592,0.09529006,93170.0,93145.0,0.16711134]
[1767737833890,0.010739,93159.0,93145.0,0.16711134]
[1767737834084,0.010738,93162.0,93145.0,0.16711134]
[1767737834303,0.09136,93163.0,93146.0,0.17785134]
[1767737834496,0.010738,93162.0,93146.0,0.16711134]
[1767737834698,0.010739,93160.0,93139.0,0.10428329]
[1767737834897,0.010739,93158.0,93139.0,0.10428329]
[1767737835491,0.010739,93161.0,93139.0,0.09354229]
[1767737835692,0.18665006,93163.0,93139.0,0.10428329]
[1767737835899,0.010739,93155.0,93138.0,0.010741]
[1767737836204,0.09136,93163.0,93137.0,0.09136]
[1767737836205,0.09529006,93158.0,93137.0,0.09136]
[1767737836800,0.01074,93151.0,93137.0,0.09136]
[1767737837404,0.09529006,93155.0,93132.0,0.09354229]
[1767737837895,0.010739,93154.0,93141.0,0.16711134]
[1767737838402,0.01074,93148.0,93132.0,0.010742]
[1767737838601,0.09529006,93154.0,93131.0,0.07356905]
[1767737838905,0.010741,93137.0,93127.0,0.09132]
[1767737839093,0.010741,93137.0,93120.0,0.16488905]
[1767737839401,0.010741,93137.0,93120.0,0.07356905]
[1767737840102,0.010741,93137.0,93120.0,0.08431205]
[1767737840403,0.010741,93140.0,93124.0,0.010743]
[1767737840904,0.010741,93138.0,93123.0,0.09354229]
[1767737842608,0.09529006,93144.0,93119.0,0.09132]
[1767737842806,0.06660186,93130.0,93119.0,0.09132]
[1767737843000,0.010743,93122.0,93109.0,0.09132]
[1767737843202,0.09132,93134.0,93112.0,0.09354229]
[1767737843402,0.09132,93143.0,93126.0,0.16711134]
[1767737843800,0.10206,93147.0,93130.0,0.07356905]
[1767737844102,0.01074,93150.0,93134.0,0.07356905]
[1767737844301,0.10206,93150.0,93134.0,0.07356905]
[1767737844507,0.10206,93150.0,93129.0,0.10428429]
[1767737844697,0.10206,93150.0,93130.0,0.16711134]
[1767737845003,0.09132,93150.0,93130.0,0.16711134]
[1767737845206,0.18661006,93150.0,93124.0,0.07356905]
[1767737845401,0.16189192,93149.0,93124.0,0.16711134]
[1767737845708,0.010741,93140.0,93124.0,0.16711134]
[1767737846005,0.010741,93140.0,93125.0,0.16711134]
[1767737846209,0.010741,93141.0,93127.0,0.16711134]
[1767737848002,0.10603006,93149.0,93129.0,0.010742]
[1767737848207,0.09136,93148.0,93134.0,0.16711134]
[1767737848406,0.01074,93149.0,93131.0,0.010742]
[1767737848601,0.01074,93147.0,93121.0,0.09132]
[1767737848801,0.01074,93147.0,93127.0,0.010742]
[1767737848999,0.09136,93149.0,93129.0,0.010742]
[1767737849310,0.1021,93149.0,93131.0,0.010742]
[1767737850108,0.01074,93146.0,93128.0,0.010742]
[1767737850609,0.01074,93144.0,93128.0,0.010742]
[1767737851111,0.01074,93144.0,93128.0,0.08431105]
[1767737851809,0.00859358,93144.0,93129.0,0.09160374]
[1767737852499,0.19071195,93150.0,93128.0,0.07356905]
[1767737852811,0.09935195,93145.0,93123.0,0.010743]
[1767737853006,0.010741,93141.0,93123.0,0.010743]
[1767737853306,0.010741,93141.0,93125.0,0.010743]
[1767737853703,0.09935195,93145.0,93125.0,0.010743]
[1767737853704,0.010741,93139.0,93125.0,0.010743]
[1767737854110,0.010741,93139.0,93122.0,0.06427817]
[1767737854111,0.09935195,93145.0,93122.0,0.06427817]
[1767737854406,0.09935195,93131.0,93107.0,0.06427817]
[1767737854602,0.09935195,93131.0,93109.0,0.15588191]
[1767737854909,0.09136,93132.0,93111.0,0.06427817]
[1767737855607,0.010742,93130.0,93117.0,0.09160374]
[1767737855804,0.010742,93128.0,93113.0,0.06427817]
[1767737856106,0.010743,93126.0,93113.0,0.06427817]
[1767737856405,0.010743,93126.0,93110.0,0.09160374]
[1767737856603,0.010743,93126.0,93111.0,0.010744]
[1767737857321,0.010743,93121.0,93110.0,0.09160374]
[1767737857906,0.010742,93130.0,93111.0,0.06427817]
[1767737858114,0.010742,93128.0,93114.0,0.010744]
[1767737858608,0.010742,93126.0,93111.0,0.07502217]
[1767737859604,0.010743,93124.0,93111.0,0.07502217]
[1767737860309,0.010743,93124.0,93111.0,0.06427817]
[1767737861212,0.010743,93124.0,93112.0,0.06427817]
[1767737862006,0.010742,93127.0,93112.0,0.07502217]
[1767737862206,0.010743,93123.0,93112.0,0.06427817]
[1767737862614,0.010742,93128.0,93114.0,0.010744]
[1767737862802,0.010743,93123.0,93111.0,0.09160374]
[1767737863007,0.010743,93123.0,93108.0,0.07502217]
[1767737863209,0.010743,93123.0,93110.0,0.07502217]
[1767737863712,0.010743,93126.0,93110.0,0.07502217]
[1767737864016,0.010742,93128.0,93113.0,0.06427817]
[1767737864217,0.010742,93128.0,93115.0,0.06427817]
[1767737864506,0.010741,93141.0,93126.0,0.07502017]
[1767737864708,0.09136,93147.0,93137.0,0.06427817]
[1767737864913,0.1021,93151.0,93126.0,0.09136]
[1767737865113,0.01074,93149.0,93127.0,0.09136]
[1767737865315,0.01074,93149.0,93135.0,0.010741]
[1767737866017,0.09136,93151.0,93127.0,0.09136]
[1767737866018,0.010741,93141.0,93127.0,0.09136]
[1767737866420,0.01074,93144.0,93128.0,0.010742]
[1767737866614,0.01074,93147.0,93130.0,0.010742]
[1767737866810,0.010741,93142.0,93127.0,0.102102]
[1767737867117,0.09935195,93144.0,93131.0,0.010742]
[1767737868120,0.09935195,93148.0,93128.0,0.06427817]
[1767737868322,0.01074,93144.0,93130.0,0.010742]
[1767737870814,0.010741,93135.0,93115.0,0.06427817]
[1767737871014,0.16816964,93140.0,93120.0,0.010743]
[1767737871015,0.010742,93133.0,93120.0,0.010743]
[1767737871225,0.010742,93133.0,93119.0,0.06427817]
[1767737871521,0.09935195,93140.0,93121.0,0.06427817]
[1767737871717,0.09935195,93140.0,93122.0,0.010743]
[1767737871925,0.010741,93138.0,93122.0,0.010743]
[1767737872222,0.010741,93135.0,93122.0,0.07502117]
[1767737872622,0.010741,93135.0,93122.0,0.06427817]
[1767737872808,0.09935195,93140.0,93122.0,0.06427817]
[1767737873012,0.010741,93135.0,93123.0,0.06427817]
[1767737873412,0.09136,93142.0,93123.0,0.06427817]
[1767737873621,0.09136,93142.0,93124.0,0.06427817]
[1767737873822,0.010741,93140.0,93124.0,0.06427817]
[1767737874019,0.010741,93138.0,93126.0,0.010742]
[1767737874216,0.010741,93138.0,93124.0,0.06427817]
[1767737874416,0.010741,93135.0,93124.0,0.06427817]
[1767737874722,0.010741,93138.0,93124.0,0.06427817]
[1767737875222,0.010741,93136.0,93124.0,0.06427817]
[1767737877317,0.010741,93135.0,93124.0,0.06427817]
[1767737877823,0.09603646,93144.0,93124.0,0.06427817]
[1767737878017,0.09136,93143.0,93124.0,0.06427817]
[1767737878218,0.010742,93133.0,93121.0,0.09160374]
[1767737878423,0.09603646,93138.0,93116.0,0.06384696]
[1767737878623,0.09603646,93133.0,93113.0,0.09136]
[1767737878828,0.010742,93127.0,93113.0,0.09136]
[1767737879216,0.010742,93127.0,93113.0,0.15520696]
[1767737879417,0.010742,93127.0,93114.0,0.06384696]
[1767737880022,0.010742,93127.0,93113.0,0.09136]
[1767737880023,0.09603646,93139.0,93124.0,0.010743]
[1767737880224,0.010742,93133.0,93122.0,0.06384696]
[1767737880426,0.010742,93134.0,93122.0,0.06384696]
[1767737882417,0.09217655,93145.0,93125.0,0.06099264]
[1767737882728,0.010741,93143.0,93128.0,0.010742]
[1767737883127,0.09217655,93145.0,93128.0,0.010742]
[1767737883128,0.010741,93142.0,93128.0,0.010742]
[1767737883323,0.010741,93142.0,93130.0,0.010742]
[1767737883520,0.010741,93142.0,93127.0,0.07173464]
[1767737883824,0.010741,93142.0,93129.0,0.010742]
[1767737885524,0.09217655,93145.0,93133.0,0.010742]
[1767737885525,0.01074,93145.0,93133.0,0.010742]
[1767737885725,0.01074,93145.0,93131.0,0.06099264]
[1767737885929,0.19556,93163.0,93131.0,0.06099264]
[1767737885930,0.01074,93148.0,93132.0,0.06099264]
[1767737886126,0.01074,93146.0,93134.0,0.010741]
[1767737886625,0.01074,93149.0,93135.0,0.06099264]
[1767737887936,0.01074,93152.0,93136.0,0.010741]
[1767737888234,0.01074,93150.0,93135.0,0.06099264]
[1767737888630,0.18353655,93155.0,93135.0,0.06099264]
[1767737888837,0.09217655,93135.0,93110.0,0.16309664]
[1767737889038,0.09217655,93135.0,93113.0,0.06099264]
[1767737889439,0.09217655,93135.0,93119.0,0.010743]
[1767737889440,0.010742,93134.0,93119.0,0.010743]
[1767737889734,0.09217655,93135.0,93115.0,0.06099264]
[1767737890528,0.09217655,93135.0,93121.0,0.010743]
[1767737892940,0.06388008,93150.0,93124.0,0.06099264]
[1767737893237,0.053655,93230.0,93139.0,0.010741]
[1767737893238,0.010739,93152.0,93139.0,0.010741]
[1767737893444,0.15524008,93161.0,93139.0,0.07173364]
[1767737893741,0.15524008,93161.0,93128.0,0.010742]
[1767737893742,0.09136,93161.0,93141.0,0.06099264]
[1767737893939,0.010739,93156.0,93141.0,0.06099264]
[1767737894242,0.010739,93156.0,93140.0,0.09125263]
[1767737895355,0.010739,93156.0,93139.0,0.010741]
[1767737895657,0.09217655,93162.0,93136.0,0.15224527]
[1767737895956,0.010739,93157.0,93141.0,0.010741]
[1767737896560,0.010739,93155.0,93141.0,0.010741]
[1767737897754,0.09217655,93161.0,93138.0,0.06099264]
[1767737897960,0.010739,93159.0,93144.0,0.01074]
[1767737898255,0.09217655,93161.0,93141.0,0.010741]
[1767737898256,0.010739,93157.0,93141.0,0.010741]
[1767737899148,0.010739,93157.0,93143.0,0.01074]
[1767737899553,0.01811865,93164.0,93153.0,0.06099264]
[1767737899754,0.010738,93165.0,93152.0,0.09125263]
[1767737899956,0.010737,93171.0,93156.0,0.06099264]
[1767737900262,0.09136,93178.0,93157.0,0.09125263]
[1767737900854,0.010737,93172.0,93157.0,0.09125263]
[1767737901052,0.010736,93181.0,93165.0,0.09125263]
[1767737901257,0.08556893,93185.0,93165.0,0.10199063]
[1767737901555,0.09136,93189.0,93167.0,0.010738]
[1767737901757,0.010736,93183.0,93165.0,0.10199063]
[1767737901960,0.010736,93183.0,93165.0,0.09125263]
[1767737902163,0.09136,93189.0,93157.0,0.09136]
[1767737902164,0.09136,93189.0,93168.0,0.09125263]
[1767737902464,0.06388008,93191.0,93170.0,0.09125263]
[1767737902761,0.06388008,93195.0,93170.0,0.09125263]
[1767737903359,0.010736,93186.0,93170.0,0.09125263]
[1767737903660,0.06388008,93195.0,93173.0,0.09125263]
[1767737904150,0.010736,93185.0,93173.0,0.09125263]
[1767737905355,0.09217655,93197.0,93173.0,0.09125263]
[1767737906164,0.010736,93185.0,93173.0,0.09125263]
[1767737907963,0.010736,93185.0,93173.0,0.15224527]
[1767737908162,0.010735,93194.0,93173.0,0.15224527]
[1767737908358,0.06388008,93195.0,93173.0,0.09125263]
[1767737908864,0.06388008,93193.0,93173.0,0.09125263]
[1767737909262,0.010736,93182.0,93173.0,0.09125263]
[1767737910464,0.010736,93182.0,93174.0,0.1203]
[1767737911666,0.09530998,93190.0,93169.0,0.1203]
[1767737912056,0.010735,93188.0,93174.0,0.09756102]
[1767737912566,0.09530998,93190.0,93169.0,0.1203]
[1767737912761,0.10604498,93190.0,93174.0,0.010737]
[1767737913067,0.09530998,93190.0,93173.0,0.010737]
[1767737913570,0.010735,93189.0,93173.0,0.010737]
[1767737913867,0.010736,93184.0,93169.0,0.1203]
[1767737914262,0.010736,93185.0,93170.0,0.010737]
[1767737916760,0.010736,93185.0,93169.0,0.21786102]
[1767737916960,0.010736,93185.0,93170.0,0.10829802]
[1767737917162,0.09530998,93188.0,93170.0,0.10829802]
[1767737917660,0.010736,93184.0,93170.0,0.10829802]
[1767737918070,0.010736,93182.0,93170.0,0.09756102]
[1767737918367,0.09530998,93188.0,93170.0,0.09756102]
[1767737919371,0.010736,93182.0,93170.0,0.09756102]
[1767737924578,0.010736,93178.0,93170.0,0.09756102]
[1767737924871,0.09530998,93189.0,93170.0,0.09756102]